bitfinex/quotes_SOLUSD_20250228
["timestamp","ask_amount","ask_price","bid_price","bid_amount"]
[1740704320160,0.20516157,136.8,136.78,0.03]
[1740704321365,81.34216157,136.79,136.78,0.03]
[1740704321663,33.10671043,136.79,136.78,0.03]
[1740704321865,99.99181043,136.78,136.74,0.03]
[1740704322148,3.79846157,136.75,136.74,0.03]
[1740704322454,84.99846157,136.75,136.74,0.03]
[1740704323157,110.22031043,136.75,136.74,0.03]
[1740704324243,106.56401043,136.75,136.74,0.03]
[1740704325934,0.14216157,136.73,136.69,2.2021313]
[1740704326253,18.64964886,136.72,136.69,2.2021313]
[1740704327171,81.2,136.73,136.69,9.5177313]
[1740704327371,81.2,136.78,136.69,9.5177313]
[1740704327671,106.42964886,136.77,136.69,109.9072313]
[1740704327858,106.42964886,136.77,136.69,91.6177313]
[1740704328261,0.14216157,136.76,136.69,91.6177313]
[1740704330660,0.14216157,136.76,136.7,1.524]
[1740704330865,99.84964886,136.77,136.7,1.524]
[1740704332749,99.84964886,136.77,136.71,7.3147]
[1740704339474,103.50544886,136.77,136.71,7.3147]
[1740704339771,0.14216157,136.76,136.7,8.8391]
[1740704340677,18.79181043,136.74,136.7,1.524]
[1740704340878,99.99181043,136.74,136.69,2.2021313]
[1740704341957,99.99181043,136.74,136.69,9.5177313]
[1740704342886,103.64841043,136.74,136.71,20.0]
[1740704343191,103.64841043,136.74,136.69,0.2237612]
[1740704343992,103.64841043,136.74,136.69,20.2237612]
[1740704344171,103.64841043,136.74,136.69,7.5394612]
[1740704344373,103.64841043,136.74,136.69,0.2237612]
[1740704348191,18.64964886,136.72,136.69,0.2237612]
[1740704348573,0.14216157,136.71,136.69,0.2237612]
[1740704348782,81.34216157,136.7,136.69,0.2237612]
[1740704349172,99.99181043,136.7,136.69,0.2237612]
[1740704349372,103.64941043,136.7,136.69,0.2237612]
[1740704350197,22.44941043,136.7,136.69,0.2237612]
[1740704351691,22.44941043,136.7,136.64,0.03]
[1740704351692,18.64964886,136.65,136.64,0.03]
[1740704352473,18.79181043,136.65,136.64,0.03]
[1740704352696,22.45071043,136.65,136.64,0.03]
[1740704353798,26.07939998,136.65,136.64,0.03]
[1740704353998,26.07939998,136.65,136.63,0.03]
[1740704354385,0.14216157,136.64,136.63,0.03]
[1740704357805,81.2,136.66,136.63,0.03]
[1740704358601,18.64964886,136.65,136.63,0.03]
[1740704358897,18.79181043,136.65,136.63,0.03]
[1740704359403,22.45081043,136.65,136.63,0.03]
[1740704360501,26.19287447,136.65,136.63,0.03]
[1740704363801,85.00136157,136.64,136.63,0.03]
[1740704364486,18.64964886,136.63,136.62,0.03]
[1740704364882,81.2,136.64,136.62,0.03]
[1740704368608,18.64964886,136.63,136.62,0.03]
[1740704368804,18.79181043,136.63,136.62,0.03]
[1740704368990,99.99181043,136.63,136.62,0.03]
[1740704369698,103.65131043,136.63,136.62,0.03]
[1740704372211,103.50914886,136.63,136.62,0.03]
[1740704377518,103.71431043,136.63,136.62,0.03]
[1740704378590,22.51431043,136.63,136.62,0.03]
[1740704379515,18.79181043,136.59,136.56,1.6236]
[1740704379927,20.0,136.53,136.44,1.5902]
[1740704380099,18.64964886,136.51,136.44,1.5902]
[1740704380525,22.31244886,136.51,136.44,8.9191]
[1740704380828,18.64964886,136.51,136.44,8.9191]
[1740704381326,22.31234886,136.51,136.44,8.9191]
[1740704381515,18.64964886,136.51,136.44,8.9191]
[1740704384634,81.2,136.5,136.44,8.9191]
[1740704389326,81.2,136.5,136.44,1.5902]
[1740704389529,84.863,136.5,136.44,1.5902]
[1740704397519,99.99181043,136.49,136.4,220.225]
[1740704397715,18.64964886,136.47,136.4,83.725]
[1740704397918,18.64964886,136.47,136.4,1.625]
[1740704398533,3.664,136.46,136.4,1.625]
[1740704398737,84.864,136.46,136.4,1.625]
[1740704399112,6.0497,136.44,136.39,9.5081435]
[1740704399313,6.6,136.43,136.39,2.1763435]
[1740704399615,18.64964886,136.41,136.39,2.1763435]
[1740704400138,81.2,136.41,136.39,2.1763435]
[1740704402539,81.2,136.41,136.34,7.3344]
[1740704403934,6.0497,136.44,136.35,6.6]
[1740704404141,81.2,136.45,136.35,225.2]
[1740704404344,99.84964886,136.44,136.35,88.7]
[1740704404638,81.2,136.43,136.35,88.7]
[1740704404814,18.64964886,136.42,136.35,88.7]
[1740704405325,18.64964886,136.4,136.33,8.8841]
[1740704405528,99.84964886,136.4,136.33,1.5491]
[1740704405720,18.64964886,136.38,136.33,1.5491]
[1740704405917,18.64964886,136.38,136.31,89.4358]
[1740704407133,81.2,136.37,136.3,0.03]
[1740704407337,81.2,136.37,136.3,7.3666]
[1740704407853,3.6667,136.36,136.3,7.3666]
[1740704408019,81.2,136.37,136.3,7.3666]
[1740704408419,87.8,136.41,136.3,7.3666]
[1740704408620,0.14216157,136.39,136.3,89.4666]
[1740704409723,3.6662,136.38,136.3,89.4666]
[1740704409937,84.8662,136.38,136.3,89.4666]
[1740704410532,10.2655,136.41,136.33,20.0]
[1740704410736,91.3739,136.42,136.33,102.1]
[1740704410923,91.3739,136.42,136.33,108.7]
[1740704411731,87.7087,136.42,136.34,1.6421]
[1740704411932,81.2,136.42,136.34,33.3252]
[1740704412835,84.8652,136.42,136.34,8.9767]
[1740704413223,6.5419,136.45,136.37,20.0]
[1740704413447,81.2,136.46,136.37,102.1]
[1740704414258,81.2,136.46,136.38,13.9324]
[1740704414442,3.6638,136.47,136.39,6.0189]
[1740704415426,3.6638,136.47,136.4,7.3313]
[1740704415731,3.6638,136.47,136.4,89.4313]
[1740704416635,3.6638,136.47,136.4,82.1]
[1740704418254,0.14216157,136.46,136.4,82.1]
[1740704418454,81.34216157,136.46,136.36,13.4432]
[1740704418658,0.14216157,136.44,136.36,13.4432]
[1740704418833,3.6648,136.43,136.36,13.4432]
[1740704419033,84.8648,136.43,136.36,13.4432]
[1740704419751,81.2,136.42,136.34,91.0766]
[1740704421156,81.2,136.42,136.34,109.4131]
[1740704421532,84.8652,136.42,136.34,109.4131]
[1740704422363,84.8652,136.42,136.34,91.0766]
[1740704423167,81.2,136.41,136.34,91.0766]
[1740704423833,84.8655,136.41,136.34,91.0766]
[1740704424035,81.2,136.41,136.34,91.0766]
[1740704424736,81.2,136.41,136.34,109.4131]
[1740704425457,81.2,136.46,136.37,20.0]
[1740704425644,84.8641,136.46,136.37,102.1]
[1740704425848,81.2,136.46,136.38,13.9524]
[1740704426250,83.34216157,136.45,136.34,1.6421]
[1740704426553,0.14216157,136.42,136.34,1.6421]
[1740704426742,81.2,136.41,136.34,1.6421]
[1740704427656,84.8655,136.41,136.34,8.9765]
[1740704432152,84.8655,136.41,136.34,91.0765]
[1740704433662,81.2,136.41,136.34,109.413]
[1740704436066,81.2,136.46,136.37,20.0]
[1740704436366,84.8641,136.46,136.37,102.1]
[1740704437356,84.8641,136.46,136.38,25.6635]
[1740704438460,10.3262,136.47,136.38,107.7635]
[1740704438652,10.3262,136.47,136.39,1.5393]
[1740704439542,10.3262,136.47,136.4,7.3313]
[1740704439865,91.5262,136.47,136.4,7.3313]
[1740704441354,81.263,136.47,136.4,25.6597]
[1740704443983,0.063,136.47,136.4,107.7597]
[1740704444874,0.063,136.47,136.4,282.45529812]
[1740704445047,0.063,136.47,136.4,280.9165]
[1740704446171,0.063,136.47,136.4,244.2597]
[1740704449278,0.063,136.47,136.4,282.9165]
[1740704449465,0.063,136.47,136.42,1.5247]
[1740704449666,0.063,136.47,136.43,20.0]
[1740704449858,0.063,136.47,136.43,238.6]
[1740704450062,0.063,136.47,136.46,20.0]
[1740704450261,0.063,136.47,136.46,102.1]
[1740704451381,0.063,136.47,136.46,109.4281]
[1740704452391,0.063,136.47,136.46,111.0061]
[1740704457270,0.063,136.47,136.43,1.5394]
[1740704457462,0.063,136.47,136.42,82.1]
[1740704457865,0.063,136.47,136.42,89.4302]
[1740704458963,0.063,136.47,136.42,107.7559]
[1740704459480,0.063,136.47,136.45,20.0]
[1740704460774,0.063,136.47,136.46,7.3281]
[1740704462684,0.063,136.47,136.46,8.9586]
[1740704462980,16.8437,136.57,136.46,252.3661]
[1740704463184,81.34216157,136.56,136.46,115.8661]
[1740704463860,3.6616,136.55,136.46,115.8661]
[1740704465788,84.8619,136.54,136.46,109.3789]
[1740704466159,84.8619,136.54,136.46,91.0586]
[1740704466364,81.2,136.53,136.46,89.4281]
[1740704467480,84.8624,136.53,136.46,89.4281]
[1740704468280,81.2,136.53,136.46,89.4281]
[1740704470671,81.2,136.52,136.44,88.7]
[1740704470879,81.2,136.52,136.45,7.3286]
[1740704471077,87.8,136.52,136.45,7.3286]
[1740704471767,87.8,136.52,136.45,25.6503]
[1740704471972,81.2,136.52,136.46,1.5907]
[1740704472901,81.2,136.52,136.47,45.6466]
[1740704473108,81.2,136.56,136.48,6.3858]
[1740704473281,81.2,136.56,136.48,88.4858]
[1740704473591,0.063,136.53,136.49,8.1402]
[1740704473773,0.063,136.53,136.52,20.0]
[1740704473983,0.063,136.53,136.52,102.1]
[1740704475076,0.063,136.53,136.52,109.4249]
[1740704475281,17.49993942,136.59,136.52,109.4249]
[1740704475597,17.49993942,136.59,136.52,127.7372]
[1740704475767,10.89993942,136.59,136.52,127.7372]
[1740704476373,0.063,136.6,136.52,264.2372]
[1740704476871,81.2,136.59,136.52,89.4249]
[1740704477090,87.94216157,136.58,136.49,1.5402]
[1740704477272,81.2,136.57,136.5,7.3258]
[1740704478872,81.2,136.57,136.5,25.6408]
[1740704481686,6.6,136.58,136.5,107.7408]
[1740704484078,81.2,136.59,136.5,107.7408]
[1740704484279,87.8,136.59,136.5,107.7408]
[1740704485089,81.34216157,136.58,136.5,7.3258]
[1740704485274,81.34216157,136.58,136.46,1.6325]
[1740704485275,8.40886157,136.56,136.46,1.6325]
[1740704485480,0.14216157,136.54,136.46,0.03]
[1740704485675,0.14216157,136.52,136.46,0.03]
[1740704485893,81.2,136.51,136.46,0.03]
[1740704486294,81.2,136.51,136.5,0.03]
[1740704486498,81.34216157,136.51,136.5,0.03]
[1740704486785,85.00486157,136.51,136.5,0.03]
[1740704488981,85.00486157,136.51,136.46,0.03]
[1740704488982,81.34216157,136.51,136.46,0.03]
[1740704489188,81.2,136.5,136.46,0.03]
[1740704491095,6.64,136.53,136.46,0.03]
[1740704491288,87.84,136.54,136.46,0.03]
[1740704491489,81.2,136.53,136.46,0.03]
[1740704494000,81.2,136.55,136.48,6.5062]
[1740704496102,6.66,136.56,136.49,25.6428]
[1740704496305,6.66,136.56,136.49,107.7428]
[1740704496891,6.66,136.56,136.52,20.0]
[1740704497089,81.2,136.55,136.52,20.0]
[1740704498401,81.2,136.55,136.53,7.3243]
[1740704498790,81.2,136.55,136.5,7.326]
[1740704499000,81.34216157,136.54,136.47,8.9271]
[1740704499306,0.14216157,136.52,136.46,0.03]
[1740704499603,6.68,136.51,136.46,0.03]
[1740704499908,87.88,136.51,136.46,0.03]
[1740704500498,91.5427,136.51,136.46,0.03]
[1740704501800,87.88,136.51,136.46,0.03]
[1740704502000,91.5427,136.51,136.46,0.03]
[1740704503413,81.2,136.5,136.46,0.03]
[1740704503803,0.14216157,136.47,136.46,0.03]
[1740704505508,12.8206,136.5,136.46,0.03]
[1740704505509,0.14216157,136.49,136.46,0.03]
[1740704505691,81.2,136.49,136.46,0.03]
[1740704506098,84.8632,136.49,136.46,0.03]
[1740704506300,81.2,136.49,136.46,0.03]
[1740704508223,6.68,136.51,136.46,0.03]
[1740704508919,87.2155,136.55,136.46,82.13]
[1740704509106,81.2,136.55,136.46,218.63]
[1740704509923,22.73687884,136.56,136.46,218.63]
[1740704510118,22.73687884,136.56,136.47,25.6466]
[1740704510318,0.063,136.56,136.47,25.6466]
[1740704510719,0.063,136.56,136.48,1.5922]
[1740704510925,0.063,136.56,136.49,6.0964]
[1740704511123,0.063,136.56,136.5,6.68]
[1740704511304,0.063,136.56,136.5,226.8176807]
[1740704511500,0.063,136.56,136.51,1.5503]
[1740704511719,0.063,136.56,136.51,220.1503]
[1740704511917,0.063,136.56,136.52,25.6372]
[1740704512228,0.063,136.56,136.52,244.2372]
[1740704512422,0.063,136.56,136.52,246.2372]
[1740704512622,0.063,136.56,136.52,248.2372]
[1740704512823,0.0001,136.56,136.53,1.53735815]
[1740704513119,0.063,136.59,136.53,225.1818]
[1740704513310,0.063,136.6,136.56,20.0]
[1740704513507,0.063,136.6,136.57,6.68]
[1740704514204,0.063,136.6,136.58,7.3217]
[1740704517328,0.063,136.6,136.59,1.5008]
[1740704517527,0.063,136.6,136.59,220.1008]
[1740704517909,0.063,136.63,136.62,20.0]
[1740704518114,0.063,136.65,136.62,246.79672894]
[1740704518313,0.063,136.65,136.63,7.319]
[1740704521010,0.063,136.65,136.63,319.319]
[1740704521416,0.063,136.65,136.63,537.919]
[1740704522933,0.063,136.65,136.63,225.919]
[1740704527316,0.063,136.65,136.63,89.419]
[1740704529535,0.063,136.67,136.63,107.7165]
[1740704529742,0.063,136.67,136.63,244.2165]
[1740704530312,0.0001,136.67,136.66,20.0]
[1740704530534,0.0001,136.67,136.66,109.4174]
[1740704530727,0.063,136.69,136.66,111.0676]
[1740704530728,0.0001,136.68,136.66,111.0676]
[1740704531951,0.063,136.73,136.66,315.1211]
[1740704532334,0.063,136.73,136.66,627.1211]
[1740704532751,0.063,136.73,136.66,629.1211]
[1740704533252,0.063,136.73,136.66,649.1611]
[1740704533454,0.063,136.73,136.66,627.1211]
[1740704533843,0.063,136.73,136.66,629.1211]
[1740704534870,0.063,136.73,136.7,20.0]
[1740704535176,0.063,136.73,136.7,102.1]
[1740704536460,0.063,136.73,136.71,7.3147]
[1740704542070,0.063,136.73,136.71,89.4147]
[1740704546985,0.063,136.73,136.71,96.0547]
[1740704550164,0.063,136.73,136.71,7.3147]
[1740704551464,0.063,136.73,136.69,82.13]
[1740704552367,0.063,136.73,136.69,89.4456]
[1740704553567,0.063,136.73,136.69,107.7351]
[1740704555045,0.063,136.73,136.72,20.0]
[1740704555243,0.063,136.74,136.72,103.6372]
[1740704555445,0.063,136.77,136.72,103.6372]
[1740704556169,0.063,136.77,136.72,158.0372]
[1740704556667,0.063,136.77,136.73,25.5978]
[1740704557258,0.063,136.77,136.73,107.6978]
[1740704559839,0.063,136.77,136.76,20.0]
[1740704560663,0.063,136.77,136.76,27.312]
[1740704562570,0.063,136.8,136.76,45.5921]
[1740704564071,0.063,136.8,136.76,127.6921]
[1740704566168,0.063,136.8,136.76,131.39236742]
[1740704567576,0.063,136.8,136.76,89.412]
[1740704567754,0.063,136.8,136.74,82.1]
[1740704567952,81.40516157,136.79,136.73,7.3136]
[1740704568275,0.14216157,136.77,136.72,89.414]
[1740704568874,8.026,136.78,136.72,89.414]
[1740704569368,6.4196,136.78,136.72,107.6995]
[1740704570756,0.063,136.79,136.72,282.3058123]
[1740704570962,0.063,136.79,136.75,20.0]
[1740704571565,0.063,136.79,136.76,25.5921]
[1740704571755,0.063,136.79,136.76,107.6921]
[1740704575157,0.063,136.79,136.76,89.412]
[1740704575354,6.2655,136.78,136.71,82.1]
[1740704575566,6.2655,136.78,136.72,7.3142]
[1740704575965,6.2655,136.78,136.72,25.5997]
[1740704577478,0.063,136.79,136.72,244.1997]
[1740704577977,0.063,136.79,136.75,20.0]
[1740704578168,0.063,136.79,136.75,102.1]
[1740704579860,0.063,136.79,136.75,109.4122]
[1740704580870,0.063,136.79,136.75,109.4752]
[1740704581279,0.063,136.79,136.75,89.4752]
[1740704582482,1.77766157,136.78,136.75,0.063]
[1740704582982,1.6355,136.78,136.75,0.063]
[1740704583581,6.648,136.76,136.75,0.063]
[1740704583782,91.64616157,136.76,136.75,0.063]
[1740704583986,81.34216157,136.75,136.69,0.03]
[1740704584168,87.82,136.74,136.69,0.03]
[1740704584985,0.14216157,136.75,136.69,0.03]
[1740704585773,3.6565,136.74,136.69,0.03]
[1740704586107,0.14216157,136.75,136.69,0.03]
[1740704586269,87.848,136.76,136.69,0.03]
[1740704586470,0.14216157,136.75,136.69,0.03]
[1740704587775,20.0,136.73,136.69,0.03]
[1740704588180,0.14216157,136.75,136.69,0.03]
[1740704588787,20.0,136.73,136.69,0.03]
[1740704588986,0.14216157,136.75,136.69,0.03]
[1740704589588,81.34216157,136.75,136.69,0.03]
[1740704592102,0.14216157,136.76,136.69,102.13]
[1740704592271,81.2,136.78,136.69,102.13]
[1740704592476,0.14216157,136.77,136.69,102.13]
[1740704593181,0.14216157,136.77,136.7,25.6034]
[1740704594989,81.2,136.78,136.7,25.6034]
[1740704595378,20.0,136.77,136.7,107.7034]
[1740704595780,0.063,136.79,136.7,282.31545036]
[1740704595985,0.063,136.79,136.73,20.0]
[1740704596188,0.063,136.79,136.73,102.1]
[1740704596893,0.063,136.79,136.74,1.67735717]
[1740704597074,0.063,136.79,136.73,238.6]
[1740704597279,0.063,136.79,136.73,102.1]
[1740704598091,0.063,136.79,136.74,7.3131]
[1740704598991,0.063,136.79,136.74,25.5959]
[1740704599395,0.063,136.79,136.74,337.5959]
[1740704601508,0.063,136.79,136.74,556.1959]
[1740704602307,0.063,136.79,136.74,244.1959]
[1740704603313,0.20516157,136.79,136.73,7.3135]
[1740704603686,81.40516157,136.79,136.72,82.1]
[1740704604399,81.40516157,136.79,136.74,0.063]
[1740704604712,3.79786157,136.77,136.74,0.063]
[1740704606014,81.2,136.78,136.74,0.063]
[1740704609804,0.063,136.79,136.74,0.063]
[1740704610014,0.063,136.79,136.75,20.0]
[1740704611222,0.063,136.79,136.75,27.3125]
[1740704612818,0.063,136.79,136.74,89.4759]
[1740704614623,0.063,136.79,136.74,0.063]
[1740704614624,0.14216157,136.78,136.74,0.063]
[1740704615805,81.263,136.79,136.74,0.063]
[1740704616804,81.263,136.79,136.75,1.5822]
[1740704616996,0.063,136.79,136.75,1.5822]
[1740704617628,0.063,136.79,136.75,83.6822]
[1740704618517,0.063,136.79,136.78,20.0]
[1740704618725,0.063,136.79,136.78,21.5201]
[1740704620620,0.063,136.79,136.78,28.8311]
[1740704621434,0.063,136.79,136.76,7.3117]
[1740704625805,0.063,136.79,136.76,25.5918]
[1740704627428,0.063,136.8,136.77,1.5344]
[1740704628132,0.0001,136.8,136.77,1.5344]
[1740704629222,0.0001,136.8,136.77,532.1344]
[1740704630035,0.0001,136.8,136.78,7.311]
[1740704630537,0.0001,136.8,136.78,11.02236723]
[1740704631739,0.0001,136.8,136.78,7.311]
[1740704643845,0.0001,136.8,136.78,225.911]
[1740704644038,0.0001,136.8,136.79,1.5358]
[1740704644552,0.0001,136.8,136.79,83.6358]
[1740704645150,0.0001,136.8,136.79,402.9462]
[1740704645357,0.0001,136.8,136.79,539.4462]
[1740704649869,0.0001,136.8,136.79,543.13648495]
[1740704650271,0.0001,136.8,136.79,227.4462]
[1740704650442,0.0001,136.8,136.79,225.9104]
[1740704650644,0.0001,136.8,136.77,7.3115]
[1740704651146,0.0001,136.8,136.77,25.5903]
[1740704652054,0.0001,136.8,136.78,0.063]
[1740704658173,6.3081,136.79,136.78,0.063]
[1740704659850,81.2001,136.8,136.78,0.063]
[1740704660172,81.2001,136.8,136.78,7.374]
[1740704662679,81.2001,136.8,136.78,0.063]
[1740704663980,0.0001,136.8,136.78,0.063]
[1740704667757,0.0001,136.8,136.79,20.0]
[1740704667954,0.0001,136.8,136.79,102.1]
[1740704668167,0.063,136.87,136.79,108.68]
[1740704668375,0.063,136.87,136.79,245.18]
[1740704669982,0.063,136.87,136.8,25.5847]
[1740704670176,0.063,136.87,136.8,27.1952]
[1740704670384,0.063,136.87,136.8,339.1952]
[1740704672784,0.063,136.87,136.8,421.2952]
[1740704673408,0.063,136.87,136.8,109.2952]
[1740704673992,0.063,136.87,136.8,145.8449]
[1740704676297,0.063,136.87,136.8,457.8449]
[1740704676901,0.063,136.87,136.8,145.8449]
[1740704677389,0.063,136.87,136.84,25.5773]
[1740704677595,0.063,136.87,136.84,107.6773]
[1740704679591,0.063,136.87,136.84,89.4078]
[1740704680591,0.063,136.87,136.84,7.3078]
[1740704681507,0.063,136.87,136.82,25.5809]
[1740704684715,0.063,136.87,136.82,107.6809]
[1740704687895,0.063,136.87,136.82,144.2252]
[1740704690820,0.063,136.87,136.82,456.2252]
[1740704691499,0.063,136.87,136.82,144.2252]
[1740704693208,0.063,136.87,136.82,107.6809]
[1740704694314,0.063,136.87,136.82,144.2252]
[1740704694698,0.063,136.87,136.82,107.6809]
[1740704700707,0.063,136.87,136.83,7.9545]
[1740704700899,0.063,136.87,136.84,6.58]
[1740704702004,0.063,136.87,136.84,7.3078]
[1740704702402,0.063,136.87,136.82,6.58]
[1740704703728,0.063,136.87,136.81,7.3094]
[1740704704110,0.063,136.87,136.81,25.5829]
[1740704704308,0.063,136.87,136.82,1.627]
[1740704704523,0.063,136.87,136.82,7.7974]
[1740704704731,0.063,136.87,136.85,20.0]
[1740704704917,0.063,136.87,136.85,102.1]
[1740704705627,0.063,136.87,136.86,7.3067]
[1740704708630,0.063,136.87,136.84,7.3078]
[1740704708823,0.063,136.87,136.84,25.5773]
[1740704711748,0.063,136.87,136.83,7.3081]
[1740704712036,81.2,136.86,136.81,7.3721]
[1740704712236,81.34216157,136.85,136.81,0.063]
[1740704713333,0.14216157,136.83,136.81,0.063]
[1740704713533,81.34216157,136.83,136.81,0.063]
[1740704713708,81.2,136.82,136.81,0.063]
[1740704713910,25.79656157,136.82,136.81,0.063]
[1740704714208,105.34216157,136.81,136.8,0.063]
[1740704714415,111.94916157,136.81,136.8,0.063]
[1740704715327,113.59296157,136.81,136.8,0.063]
[1740704715928,117.24766157,136.81,136.8,0.063]
[1740704717014,20.14216157,136.76,136.75,0.063]
[1740704717226,26.72216157,136.76,136.75,0.063]
[1740704718549,33.21806157,136.76,136.75,0.063]
[1740704719620,36.87406157,136.76,136.75,0.063]
[1740704720533,2.14216157,136.75,136.72,0.063]
[1740704720719,20.14216157,136.73,136.72,0.063]
[1740704720919,20.14216157,136.71,136.69,0.03]
[1740704721147,91.4376,136.7,136.69,0.03]
[1740704721319,87.78,136.7,136.69,0.03]
[1740704722417,6.58,136.7,136.69,0.03]
[1740704722619,10.2376,136.7,136.69,0.03]
[1740704722832,6.58,136.7,136.69,0.03]
[1740704723035,10.2376,136.7,136.69,0.03]
[1740704723226,6.58,136.7,136.69,0.03]
[1740704724518,10.2376,136.7,136.69,0.03]
[1740704724715,10.37976157,136.7,136.69,0.03]
[1740704726255,10.37976157,136.7,136.66,0.063]
[1740704726453,0.14216157,136.66,136.63,0.03]
[1740704726615,6.72216157,136.65,136.63,0.03]
[1740704727524,6.0101,136.64,136.63,0.03]
[1740704728136,6.58,136.65,136.63,0.03]
[1740704731145,0.14216157,136.64,136.63,0.03]
[1740704732445,3.80136157,136.64,136.63,0.03]
[1740704734139,20.14216157,136.63,136.62,0.063]
[1740704735130,25.80166157,136.63,136.62,0.0001]
[1740704735329,33.91216157,136.63,136.62,0.0001]
[1740704735525,4.14216157,136.62,136.6,0.063]
[1740704736244,81.34216157,136.61,136.6,0.063]
[1740704737329,85.00216157,136.61,136.6,0.063]
[1740704737528,81.34216157,136.61,136.6,0.063]
[1740704738237,85.00216157,136.61,136.6,0.063]
[1740704738645,81.34216157,136.61,136.6,0.063]
[1740704739238,81.2,136.61,136.6,0.063]
[1740704741355,0.063,136.64,136.6,0.063]
[1740704742949,0.20516157,136.64,136.6,0.063]
[1740704743835,0.063,136.64,136.6,0.063]
[1740704745032,0.063,136.64,136.61,6.4392]
[1740704745347,0.063,136.64,136.63,20.0]
[1740704745552,0.063,136.64,136.63,102.1]
[1740704745862,81.2,136.71,136.64,7.3185]
[1740704746064,81.2,136.71,136.64,89.4185]
[1740704746555,81.2,136.71,136.64,107.7147]
[1740704748950,81.263,136.71,136.64,107.7147]
[1740704750963,81.263,136.71,136.64,89.4185]
[1740704750964,0.14216157,136.7,136.64,89.4185]
[1740704751166,0.14216157,136.7,136.64,82.1]
[1740704752966,20.14216157,136.68,136.64,82.1]
[1740704753262,81.34216157,136.68,136.63,0.03]
[1740704754056,85.00046157,136.68,136.63,0.03]
[1740704754567,81.34216157,136.68,136.63,0.03]
[1740704755151,0.14216157,136.66,136.63,0.03]
[1740704755468,0.14216157,136.64,136.63,0.03]
[1740704755644,81.34216157,136.64,136.63,0.03]
[1740704756258,85.00136157,136.64,136.63,0.03]
[1740704756860,23.80136157,136.64,136.63,0.03]
[1740704758067,3.80136157,136.64,136.63,0.03]
[1740704758273,81.2,136.66,136.63,0.03]
[1740704760969,87.78,136.68,136.64,1.5231]
[1740704761153,81.2,136.7,136.64,1.5231]
[1740704761876,81.2,136.7,136.65,7.3179]
[1740704762369,81.2,136.7,136.64,8.8414]
[1740704762370,84.8577,136.7,136.64,8.8414]
[1740704762766,84.8577,136.7,136.64,1.5231]
[1740704762963,84.8577,136.7,136.64,8.8414]
[1740704763471,0.14216157,136.69,136.64,1.5231]
[1740704764378,81.2,136.7,136.64,8.8415]
[1740704764877,0.063,136.71,136.64,244.2146]
[1740704765076,0.063,136.71,136.65,1.5218]
[1740704765764,3.7204,136.71,136.65,1.5218]
[1740704766479,0.063,136.71,136.65,1.5218]
[1740704766672,0.063,136.71,136.65,8.8396]
[1740704767879,0.063,136.71,136.65,27.1345]
[1740704768675,0.063,136.71,136.65,8.8396]